Cogmind - Beta 16.1 @@@ ROGUE MODE // 2026.02.19 @ 00:04:32 Player: alice_fexa Result: Destroyed by G-47 Trooper with Particle Gun Performance ------------- Evolutions (0) 0 Regions Visited (2) 400 Robots Destroyed (35) 175 Value Destroyed (562) 562 Prototype IDs (0) 0 Alien Tech Used (0) 0 Bonus (0) 0 TOTAL SCORE: 1137 Bonus ------- None Cogmind --------- Core Integrity 0/250 Matter 266/300 Energy 250/250 System Corruption 0% Temperature Cool (9) Movement Treading (160) Location -10/Mines Parts ------- > --- POWER (1) -------- Ion Engine > --- PROPULSION (2) --- Improved Treads Improved Treads > --- UTILITY (2) ------ Small Storage Unit Seismic Detector > --- WEAPON (2) ------- Assault Rifle Assault Rifle > --- INVENTORY (8) ---- Ion Engine Improved Treads Armored Wheel Armored Wheel Improved Heat Sink Beam Cannon Beam Cannon Datajack Peak State ------------ > --- POWER ------------ Ion Engine > --- PROPULSION ------- Improved Treads Improved Treads > --- UTILITY ---------- Small Storage Unit Improved Targeting Computer > --- WEAPON ----------- Assault Rifle Assault Rifle > --- INVENTORY -------- Ion Engine Improved Treads Armored Wheel Improved Heat Sink Improved Targeting Computer Beam Cannon Beam Cannon Datajack [Rating: 11] Favorites ----------- Power Ion Engine Engine Ion Engine Propulsion Improved Treads Treads Improved Treads Utility Small Storage Unit Device Heat Sink Storage Small Storage Unit Processor Improved Targeting Computer Weapon Assault Rifle Energy Gun Small Laser Ballistic Gun Assault Rifle Build | -11 -10 -10 ------- Run | Yrd Mat Min Slots Evolved . | . . . Power . | . . . Propulsion . | . . . Utility . | . . . Weapon . | . . . Parts Attached 20 | 6 13 1 Power 3 | 1 2 . Engine 3 | 1 2 . Core . | . . . Reactor . | . . . Propulsion 7 | 2 5 . Treads 7 | 2 5 . Leg . | . . . Wheel . | . . . Hover . | . . . Flight . | . . . Utility 5 | 1 3 1 Device 2 | . 1 1 Storage 1 | 1 . . Processor 2 | . 2 . Hackware . | . . . Protection . | . . . Artifact . | . . . Weapon 5 | 2 3 . Energy Gun 2 | 2 . . Energy Cannon . | . . . Ballistic Gun 3 | . 3 . Ballistic Cannon . | . . . Launcher . | . . . Special Weapon . | . . . Impact Weapon . | . . . Slashing Weapon . | . . . Piercing Weapon . | . . . Special Melee Weapon . | . . . Unidentified Prototypes . | . . . Parts Lost 1 | . 1 . Power . | . . . Propulsion . | . . . Utility . | . . . Weapon 1 | . 1 . Highest Loss Streak 1 | . 1 . To Critical Strikes . | . . . Average Backups 7 | 1 7 8 Power . | . 1 1 Propulsion 1 | . 1 3 Utility . | . . 1 Weapon 3 | . 3 2 Tool/Special . | . . . Unused Backups 12 | . 5 7 Power 1 | . 1 . Propulsion 3 | . . 3 Utility 3 | . 2 1 Weapon 4 | . 2 2 Tool/Special 1 | . . 1 Average Slot Usage (%) 98 | . 98 100 Engine 14 | . 14 14 Treads 28 | . 28 28 Device 1 | . 1 5 Storage 14 | . 14 14 Processor 11 | . 11 8 Ballistic Gun 27 | . 27 28 Peak Build Rating 11 | 6 11 11 Average Rating 9 | 4 9 10 On Entrance 5 | . 6 11 Avg Prop Armor Cover (%) . | . . . Naked Turns . | . . . Heaviest Build 15 | 11 15 15 Greatest Support 46 | 40 46 46 Greatest Overweight (x) 2 | 2 . . Average Overweight (x) . | . . . Largest Inventory Capacity 8 | 8 8 8 Average Capacity 7 | 7 8 8 Most Carried 8 | 2 8 8 Average Carried 7 | 1 7 8 Final Capacity 8 | 8 8 8 Final Carried 8 | 2 8 8 Class Distribution -------------------- 100% | Mutant Dominant Class ---------------- Mutant | -10/Materials Mutant | -10/Mines Resources | -11 -10 -10 ----------- Run | Yrd Mat Min Matter Collected 946 | 260 674 12 Remotely . | . . . Salvage Created 1063 | 132 919 12 Parts 65 | 8 54 3 Haulers Intercepted 2 | . 2 . Recyclers Shooed 2 | . 2 . Parts Field Recycled . | . . . Retrieved Matter . | . . . Parts Self-Destructed . | . . . Prevented . | . . . Parts Restored . | . . . Kills | -11 -10 -10 ------- Run | Yrd Mat Min Combat Hostiles Destroyed 16 | . 16 . Guns 16 | . 16 . Classes Destroyed 8 | 2 6 . Worker 1 | . 1 . Builder 3 | . 3 . Tunneler 8 | 3 4 1 Hauler 2 | . 2 . Recycler 2 | 1 1 . Watcher 3 | . 3 . Swarmer 6 | . 6 . Grunt 10 | . 10 . Best Kill Streak 6 | 4 6 1 Combat Bots Only 3 | . 3 . Max Kills in Single Turn 2 | 2 1 1 Gunslinging . | . . . Exploded . | . . . Melee . | . . . Uniques/NPCs Destroyed . | . . . Combat | -11 -10 -10 -------- Run | Yrd Mat Min Hostile Shots Fired 88 | . 86 2 Missed 16 | . 16 . Hits 72 | . 70 2 Projectile 72 | . 70 2 Critical Strikes 2 | . 2 . Damage Taken 809 | . 782 27 Core 250 | . 236 14 Absorbed by Shields . | . . . Core Remaining (%) 100 | 100 . . Volleys Fired 104 | 6 95 3 Largest 2 | 2 2 2 Hottest 90 | 90 40 40 Shots Fired 207 | 12 189 6 Gun 207 | 12 189 6 Cannon . | . . . Launcher . | . . . Special . | . . . Kinetic 195 | . 189 6 Thermal 12 | 12 . . Explosive . | . . . Electromagnetic . | . . . Robot Hit Streak 16 | 3 16 2 Robot Miss Streak 4 | 2 4 2 Penetration Max . | . . . Secondary Targets 2 | . 2 . Max Gunslinging Chain 1 | . 1 . Shots Hit Robots 128 | 7 119 2 Core Hits 51 | 5 45 1 Critical Kills . | . . . Critical Parts Destroyed . | . . . Critical Strikes . | . . . Melee Attacks . | . . . Impact . | . . . Slashing . | . . . Piercing . | . . . Sneak Attacks . | . . . Combat Hostiles . | . . . Follow-up Attacks . | . . . Damage Inflicted 1637 | 95 1518 24 Guns 1637 | 95 1518 24 Cannons . | . . . Explosions . | . . . Melee . | . . . Ramming . | . . . Kinetic 1542 | . 1518 24 Thermal 95 | 95 . . Explosive . | . . . Electromagnetic . | . . . Impact . | . . . Slashing . | . . . Piercing . | . . . Highest Corruption . | . . . Average Corruption . | . . . Corruption Purged . | . . . Corruption Blocked . | . . . Overload Shots . | . . . Overflow Damage . | . . . Projectiles . | . . . Explosions . | . . . Melee . | . . . Knockbacks . | . . . Impact . | . . . Kinetic . | . . . Secondary . | . . . Self-Inflicted Damage . | . . . Shots . | . . . Rammed . | . . . Targets Rammed . | . . . Kicked . | . . . Crushed . | . . . Highest Temperature 90 | 90 20 2 Average Temperature 31 | 48 6 2 Received Heat Transfer 324 | . 306 18 Siege Activations . | . . . Martial Activations . | . . . Shielding Activations . | . . . Robots Disrupted . | . . . Combat Hostiles . | . . . Robots Corrupted . | . . . Combat Hostiles . | . . . Parts Fried . | . . . Impact Corruptions . | . . . Robots Melted . | . . . Combat Hostiles . | . . . Parts Melted . | . . . Heat Transferred 236 | 236 . . Parts Sabotaged . | . . . Parts Stolen . | . . . Parts Stripped . | . . . Power Chain Reactions . | . . . Alert | -11 -10 -10 ------- Run | Yrd Mat Min Maximum Alert Level . | . . . Low Security (%) 100 | 100 100 100 Level 1 . | . . . Level 2 . | . . . Level 3 . | . . . Level 4 . | . . . Level 5 . | . . . High Security . | . . . Max Security . | . . . Peak Influence 149 | 15 149 5 Initial 9 | . 9 . Average 34 | 2 36 . Influence Increases 569 | 20 544 5 Destroy 0b10 Robot/C 320 | . 320 . Destroy 0b10 Robot/NC 95 | 20 70 5 Destroy Leader 80 | . 80 . Successful Hack 29 | . 29 . Lose Combat Pursuer 45 | . 45 . Influence Decreases 569 | 5 559 5 Entered New Map 6 | . 6 . Time Decay 454 | 5 444 5 Lost Part 10 | . 10 . Purge Threat 99 | . 99 . Squads Dispatched 3 | . 3 . Investigation 1 | . 1 . Extermination . | . . . Reinforcement 2 | . 2 . Assault . | . . . Garrison . | . . . Intercept . | . . . Searches Triggered . | . . . Construction Impeded . | . . . Haulers Reinforced . | . . . Active Scanning Responses . | . . . Cargo Convoy Interrupts . | . . . Stealth | -11 -10 -10 --------- Run | Yrd Mat Min Distress Signals 3 | . 3 . Communications Jammed . | . . . Distress Signals . | . . . Times Spotted 32 | . 31 1 Peak Tracking Total 4 | . 4 1 Tactical Retreats 3 | . 3 . Traps | -11 -10 -10 ------- Run | Yrd Mat Min Traps Triggered 2 | . 2 . Indirectly . | . . . Trap Hack Attempts . | . . . Triggered . | . . . Disarmed . | . . . Reprogrammed . | . . . Reused . | . . . Traps Extracted . | . . . Installed . | . . . Triggered . | . . . Machines | -11 -10 -10 ---------- Run | Yrd Mat Min Machines Disabled 1 | . 1 . Max in Single Turn 1 | . 1 . Machines Repaired . | . . . Machines Dismantled . | . . . Machines Sabotaged . | . . . Overloaded Fab Kills . | . . . Hacking | -11 -10 -10 --------- Run | Yrd Mat Min Machines Accessed 8 | . 8 . Terminals 6 | . 6 . Fabricators . | . . . Repair Stations . | . . . Recycling Units 2 | . 2 . Scanalyzers . | . . . Garrison Access . | . . . Total Hacks 19 | . 19 . Successful 13 | . 13 . Failed 6 | . 6 . Catastrophic . | . . . Database Lockouts . | . . . Manual 15 | . 15 . Terminals 17 | . 17 . Fabricators . | . . . Repair Stations . | . . . Recycling Units 2 | . 2 . Scanalyzers . | . . . Garrison Access . | . . . Terminal Hacks 4 | . 4 . Unreport Threat 1 | . 1 . Locate Traps 2 | . 2 . Zone Layout 1 | . 1 . Fabricator Hacks . | . . . Repair Station Hacks . | . . . Recycling Unit Hacks 2 | . 2 . Retrieve Components 2 | . 2 . Scanalyzer . | . . . Garrison Access Hacks . | . . . Unauthorized Hacks 7 | . 7 . Terminals 7 | . 7 . Botnet 2 | . 2 . Skim 5 | . 5 . Fabricators . | . . . Repair Stations . | . . . Recycling Units . | . . . Scanalyzers . | . . . Garrison Access . | . . . Data Cores Recovered . | . . . Used . | . . . Hacking Detections 5 | . 5 . Full Trace Events . | . . . Feedback Events . | . . . Feedback Blocked . | . . . Robot Schematics Acquired . | . . . Robots Built . | . . . Authchips . | . . . Time . | . . . Total Robot Build Rating . | . . . Part Schematics Acquired . | . . . Parts Built . | . . . Authchips . | . . . Time . | . . . Total Part Build Rating . | . . . Part Studies Acquired . | . . . Parts Repaired . | . . . Time . | . . . Parts Recycled . | . . . Recycled Matter . | . . . Retrieved Matter . | . . . Retrieved Components 4 | . 4 . Parts Scanalyzed . | . . . Part Schematics Acquired . | . . . Parts Damaged . | . . . Bothacking | -11 -10 -10 ------------ Run | Yrd Mat Min Used RIF Installer . | . . . Robots Hacked . | . . . Non-combat . | . . . Combat . | . . . Robot Hacks Applied . | . . . Relay Couplers Released . | . . . Fabnet Peak Effective % . | . . . Robots Rewired . | . . . Allies Hacked . | . . . Hacks Repelled . | . . . Allies | -11 -10 -10 -------- Run | Yrd Mat Min Total Allies . | . . . Largest Group . | . . . Highest-Rated Group . | . . . Highest-Rated Ally . | . . . Total Orders . | . . . Ally Attacks . | . . . Total Damage . | . . . Kills . | . . . Allies Corrupted . | . . . Allies Melted . | . . . Intel | -11 -10 -10 ------- Run | Yrd Mat Min Active Infowar (turns) 27 | . . 27 Seismic 27 | . . 27 Robot Analysis Total . | . . . Derelict Logs Recovered . | . . . Drone Launches . | . . . Drone Recoveries . | . . . Exploration | -11 -10 -10 ------------- Run | Yrd Mat Min Turns Passed 2921 | 76 2776 69 Spaces Moved 1121 | 34 1051 36 Core 13 | 13 . . Treads 1108 | 21 1051 36 Legs . | . . . Wheels . | . . . Hover . | . . . Flight . | . . . Fastest Speed 50 | 50 160 160 Average Speed 158 | 125 160 160 Slowest Speed 160 | 160 160 160 Overloaded Moves . | . . . Propulsion Burnouts . | . . . Robots Hopped . | . . . Potential Cave-ins . | . . . Cave-ins Triggered . | . . . Exploration Rate (%) 38 | 4 98 14 Regions Visited 2 Branch Regions 1 Pre-discovered Areas 1 | . 1 . Known Exits Taken 1 | . 1 . Unknown Exits Taken 1 | 1 . . Scrap Searched . | . . . Spaces Dug . | . . . Terrain Destroyed . | . . . Melee . | . . . Projectile . | . . . AOE . | . . . Terrain Rammed . | . . . Walls Destroyed . | . . . Machines Disabled . | . . . Actions | -11 -10 -10 --------- Run | Yrd Mat Min Total 2056 | 52 1963 41 Wait 783 | 5 778 . Move 1119 | 33 1050 36 Hop . | . . . Pick Up 13 | 2 11 . Fast Attach 11 | 6 4 1 Attach 1 | . 1 . Detach 3 | . 2 1 Swap 8 | . 8 . Drop 14 | . 14 . Fire 104 | 6 95 3 Melee . | . . . Ram . | . . . Kick . | . . . Crush . | . . . Escape Stasis . | . . . Rewire . | . . . Trap . | . . . Miscellaneous . | . . . Route ------- -11/Scrapyard -10/Materials (discovered 6 exits: *Mat x3 / *Min x2 / *Sub) -10/Mines History --------- Turn | Location | Event 10 | -11/Scrapyard | Discovered new exit (range 16) 77 | -11/Scrapyard | Entered Materials 307 | -10/Materials | Build established: Mutant 386 | -10/Materials | Discovered new exit (range 9) 614 | -10/Materials | Discovered new exit (range 15) 834 | -10/Materials | Discovered new exit (range 11) 909 | -10/Materials | Core integrity fell below 50% 1033 | -10/Materials | Core integrity fell below 20% 1301 | -10/Materials | Discovered new exit (range 11) 1449 | -10/Materials | Discovered new exit (range 6) 1451 | -10/Materials | Learned location of 2 exits from Subcaves 1501 | -10/Materials | Learned location of Storage (-9) 1541 | -10/Materials | Identified exit to Subcaves 1570 | -10/Materials | Learned Storage emergency access door positions 1590 | -10/Materials | Identified exit to Materials 1590 | -10/Materials | Identified exit to Mines 1602 | -10/Materials | Learned location of 1 exit from Recycling 1603 | -10/Materials | Learned 2 Materials zone layouts 1631 | -10/Materials | Learned location of 2 exits from Subcaves 1660 | -10/Materials | Learned Materials stockpile data 2853 | -10/Materials | Entered Mines 2922 | -10/Mines | Destroyed by G-47 Trooper with Particle Gun Last Messages --------------- 01925_ K-01 Serf cleans the Electrolysis Chamber. 02064_ R-06 Scavenger collects Hover Unit. 02138_ T-07 Excavator destroyed. 02142_ Acquired 14 matter. 02170_ R-06 Scavenger destroyed. 02173_ Acquired 43 matter. 02235_ R-06 Scavenger collects Hover Unit. 02243_ K-01 Serf collects debris. 02286_ K-01 Serf cleans the Electrolysis Chamber. 02314_ K-01 Serf cleans the TF Node. 02351_ K-01 Serf cleans the Electrolysis Chamber. 02407_ K-01 Serf cleans the TF Node. 02562_ K-01 Serf cleans the Electrolysis Chamber. LOCATION=MINES GOAL=ESCAPE Something is scanning the area. 02888_ T-07 Excavator destroyed. 02891_ Acquired 12 matter. 02895_ Discarded Imp. Targeting Computer. 02895_ Acquired Seismic Detector. Map ----- +----------------------------------------------------+ | ?????????????????????????????????????????????????? | | ?????????????????????????????????????????????????? | | ?????????????????????????????????????????????????? | | ?????????????????????????????????????????????????? | | ?????????????????????????????????????????????????? | | ??????????????????????###????????????????????????? | | ?????????????????????## #???????????????????????? | | ?????????????????????# ##?????????????????????? | | ??????????????? ????# ##????????????????????? | | ??????????????? ?????# ##???????????????????? | | ??????????????? ??????# ##??????????????????? | | ??????????????? #??????# ##?????????????????? | | ??????????????? #?????## ##????????????????? | | ??????????????? #?????# ##???????????????? | | ??????????????? #?????# ######## #??????? | | ??????????????# #?????# #??????? | | ??????????????# #?????## #??????? | | ??????????????# ???????## #### ######??????? | | ?????????????## ????????# #????###???????????? | | ?????????????# ????????## #??????????????????? | | ?????????????# ?????????## #??????????????????? | | ?????????????# #?????????## #??????????????????? | | ?????????????# #?????????# #??????????????????? | | ???????????### ##????????# #??????????????????? | | ??????????## ########## #??????????????????? | | ??????????# g = @ #??????????????????? | | ?????????# ! ##??????????????????? | | ?????????# ######### #???????????????????? | | ?????????## ##???????# #???????????????????? | | ??????????## ######????????# ???????????????????? | | ???????????# ??????????????### ??????????????????? | | ??????????? ??????????????????#?????????????????? | | ??????????##?????????????????????????????????????? | | ?????????????????????????????????????????????????? | | ?????????????????????????????????????????????????? | | ?????????????????????????????????????????????????? | | ?????????????????????????????????????????????????? | | ?????????????????????????????????????????????????? | | ?????????????????????????????????????????????????? | | ?????????????????????????????????????????????????? | | ?????????????????????????????????????????????????? | | ?????????????????????????????????????????????????? | | ?????????????????????????????????????????????????? | | ?????????????????????????????????????????????????? | | ?????????????????????????????????????????????????? | | ?????????????????????????????????????????????????? | | ?????????????????????????????????????????????????? | | ?????????????????????????????????????????????????? | | ?????????????????????????????????????????????????? | | ?????????????????????????????????????????????????? | +----------------------------------------------------+ Best States ------------- Heat Dissipation 35 Energy Generation 10 Energy Capacity 250 Matter Stores 300 Matter Capacity 300 Sight Range 16 Terrain Scan Density 10 Evasion (%) 50 Targeting Accuracy 6 Recoil Reduction 2 Item Schematics ----------------- None Robot Schematics ------------------ None Fabricated ------------ Nothing Repaired ---------- Nothing Studied --------- None Alien Tech Used ----------------- None Achievements -------------- None Challenges ------------ None Game ------ Seed RecyclingPlexusThruster Manual? 0 Play Time 00:07:21 Cumulative 1607.2 hours Start 2026.02.18 @ 23:57:20 End 2026.02.19 @ 00:04:32 Sessions 1 Manual Loads 0 Difficulty Rogue Special Mode None Game No. 1154 Rogue 1114 Adventurer 40 Explorer 0 Win Type - Total 208 Types 93/11/74/2/2/4/16/2/1/3 Lore% 97 Gallery% 95 Achievement% 82 Wizard Run 0 Options --------- Layout 0 ASCII 0 Keyboard 0 Movement Numpad Keybinds 0 Fullscreen 0 Font 20/Terminus Map View 76x50 Zoom Use 0% Tactical HUD 1 Map Filters NONE Filters NONE Steam 1 RUN: c4345f08-94e2-47a7-bb12-c0dab92372b4